bitfinex-derivatives/quotes_SOLF0:USTF0_20250216
["timestamp","ask_amount","ask_price","bid_price","bid_amount"]
[1739723476470,0.03646846,191.19,191.16,5.2304]
[1739723477271,5.26606846,191.19,191.15,5.26679615]
[1739723477766,5.26606846,191.19,191.15,0.03619615]
[1739723478568,5.26606846,191.19,191.15,5.26679615]
[1739723479165,5.2299,191.18,191.15,5.26679615]
[1739723479475,0.03646846,191.19,191.15,5.26679615]
[1739723479775,5.26626846,191.19,191.15,5.26679615]
[1739723479973,0.03646846,191.19,191.15,0.03619615]
[1739723480175,3.2564,191.18,191.12,7.27728555]
[1739723481479,3.2564,191.18,191.13,0.0361678]
[1739723483074,5.231,191.14,191.13,0.0361678]
[1739723483475,3.2564,191.18,191.13,0.0361678]
[1739723484169,3.2564,191.18,191.13,5.2671678]
[1739723484568,3.2564,191.18,191.13,0.0361678]
[1739723484774,1.6076,191.18,191.13,0.0361678]
[1739723484974,0.03646846,191.19,191.13,0.0361678]
[1739723485377,0.03646846,191.19,191.14,5.2308]
[1739723486177,0.03646846,191.19,191.13,0.0361678]
[1739723486771,0.03646846,191.19,191.18,5.2299]
[1739723492477,3.2283,191.35,191.21,5.2288]
[1739723492783,4.8703,191.35,191.21,5.2288]
[1739723493078,5.2273,191.28,191.22,5.2288]
[1739723493381,35.11444734,191.33,191.22,5.2288]
[1739723493680,5.2274,191.27,191.26,0.03788318]
[1739723494076,5.2274,191.27,191.25,0.03420564]
[1739723494585,5.2272,191.28,191.25,0.03420564]
[1739723494784,0.03615334,191.29,191.25,0.03420564]
[1739723495083,5.2273,191.28,191.25,0.03420564]
[1739723495381,0.03615334,191.29,191.25,0.03420564]
[1739723495581,5.2277,191.26,191.25,0.03420564]
[1739723495782,1.588,191.28,191.15,29.10914221]
[1739723495983,1.5905,191.27,191.17,5.2301]
[1739723496383,5.2282,191.24,191.15,29.10914221]
[1739723496589,5.2282,191.24,191.18,5.2296]
[1739723496782,5.2282,191.24,191.16,7.27728555]
[1739723496983,0.03491111,191.23,191.19,0.03778746]
[1739723497980,5.26361111,191.23,191.19,0.03778746]
[1739723501082,5.26361111,191.23,191.19,5.26738746]
[1739723501495,5.26341111,191.23,191.19,0.03778746]
[1739723502388,5.26341111,191.23,191.19,5.26728746]
[1739723502693,5.26341111,191.23,191.19,0.03778746]
[1739723503991,0.03491111,191.23,191.19,0.03778746]
[1739723505891,0.03491111,191.23,191.2,5.2293]
[1739723507189,0.03491111,191.23,191.19,5.26728746]
[1739723507892,5.26341111,191.23,191.19,5.26728746]
[1739723508393,0.03491111,191.23,191.19,0.03778746]
[1739723511095,5.26341111,191.23,191.19,0.03778746]
[1739723511297,0.03491111,191.23,191.2,5.2293]
[1739723515302,0.03491111,191.23,191.19,0.03778746]
[1739723515501,0.03491111,191.23,191.19,5.26728746]
[1739723515700,0.03491111,191.23,191.19,0.03778746]
[1739723515898,5.26341111,191.23,191.19,5.26728746]
[1739723516401,0.03491111,191.23,191.19,0.03778746]
[1739723516608,0.03491111,191.23,191.19,5.26728746]
[1739723517210,5.26341111,191.23,191.19,5.26728746]
[1739723517405,0.03491111,191.23,191.2,5.2293]
[1739723520611,0.03491111,191.23,191.21,5.229]
[1739723520912,0.03491111,191.23,191.19,0.03778746]
[1739723521714,5.2288,191.22,191.19,0.03778746]
[1739723522316,5.26351111,191.23,191.19,0.03778746]
[1739723522616,0.03491111,191.23,191.19,0.03778746]
[1739723522817,5.2293,191.21,191.19,0.03778746]
[1739723523414,5.2291,191.21,191.19,0.03778746]
[1739723523618,0.03491111,191.23,191.19,0.03778746]
[1739723523919,5.26361111,191.23,191.19,0.03778746]
[1739723524320,0.03491111,191.23,191.19,0.03778746]
[1739723525019,0.03491111,191.23,191.22,5.2288]
[1739723528313,0.03491111,191.23,191.19,7.31507301]
[1739723528515,0.03491111,191.23,191.2,5.2293]
[1739723529012,0.03491111,191.23,191.19,7.31507301]
[1739723529621,0.03491111,191.23,191.2,5.2291]
[1739723529921,0.03491111,191.23,191.22,4.60994938]
[1739723532621,0.03491111,191.23,191.19,7.31507301]
[1739723534721,5.229,191.22,191.19,7.31507301]
[1739723535423,0.03491111,191.23,191.19,7.31507301]
[1739723535637,0.03491111,191.23,191.19,0.03778746]
[1739723536518,5.26361111,191.23,191.19,0.03778746]
[1739723536719,0.03491111,191.23,191.19,0.03778746]
[1739723537120,5.2293,191.2,191.19,0.03778746]
[1739723537517,0.03491111,191.23,191.13,7.27728555]
[1739723537723,5.23,191.18,191.13,7.27728555]
[1739723537924,3.1156,191.27,191.13,7.27728555]
[1739723538119,5.2304,191.17,191.13,7.27728555]
[1739723538927,5.26553153,191.17,191.13,7.31578515]
[1739723540324,0.03513153,191.17,191.13,7.31578515]
[1739723540526,5.2306,191.16,191.13,7.31578515]
[1739723540727,5.2306,191.16,191.13,0.0384996]
[1739723542025,0.03513153,191.17,191.13,0.0384996]
[1739723542726,0.03513153,191.17,191.13,5.2694996]
[1739723542930,0.03513153,191.17,191.13,0.0384996]
[1739723543330,5.2306,191.16,191.13,0.0384996]
[1739723544232,0.03513153,191.17,191.13,0.0384996]
[1739723545737,0.03513153,191.17,191.14,5.2309]
[1739723546032,0.03513153,191.17,191.13,0.0384996]
[1739723546231,0.03513153,191.17,191.14,5.2309]
[1739723548535,0.03513153,191.17,191.13,0.0384996]
[1739723549431,5.26533153,191.17,191.13,0.0384996]
[1739723551025,0.03513153,191.17,191.13,0.0384996]
[1739723551535,0.03513153,191.17,191.13,5.2694996]
[1739723551936,0.03513153,191.17,191.13,0.0384996]
[1739723552736,5.26533153,191.17,191.13,5.2696996]
[1739723552937,5.26533153,191.17,191.13,0.0384996]
[1739723553133,5.26533153,191.17,191.13,5.2694996]
[1739723553333,0.03513153,191.17,191.13,0.0384996]
[1739723553736,0.03513153,191.17,191.13,5.2694996]
[1739723554235,0.03513153,191.17,191.13,0.0384996]
[1739723554938,0.03513153,191.17,191.14,5.231]
[1739723555236,0.03513153,191.17,191.13,0.0384996]
[1739723556137,5.26543153,191.17,191.13,0.0384996]
[1739723556638,5.26543153,191.17,191.13,5.2694996]
[1739723557540,5.26543153,191.17,191.13,0.0384996]
[1739723557736,0.03513153,191.17,191.13,0.0384996]
[1739723558038,0.03513153,191.17,191.14,5.2309]
[1739723559542,5.26533153,191.17,191.14,5.2309]
[1739723559732,0.03513153,191.17,191.13,0.0384996]
[1739723560340,0.03513153,191.17,191.14,5.231]
[1739723563141,5.26533153,191.17,191.14,5.231]
[1739723563741,0.03513153,191.17,191.14,5.231]
[1739723564942,0.03513153,191.17,191.13,0.0384996]
[1739723565943,5.26533153,191.17,191.14,5.2309]
[1739723567738,0.03513153,191.17,191.14,5.2309]
[1739723568245,0.03513153,191.17,191.13,0.0384996]
[1739723568543,5.26533153,191.17,191.13,0.0384996]
[1739723568843,0.03513153,191.17,191.13,0.0384996]
[1739723570042,0.03513153,191.17,191.14,5.231]
[1739723573144,0.03513153,191.17,191.13,0.0384996]
[1739723573344,0.03513153,191.17,191.16,5.2304]
[1739723574945,0.03513153,191.17,191.14,5.2308]
[1739723575744,5.26533153,191.17,191.13,0.0384996]
[1739723576246,5.2307,191.16,191.13,0.0384996]
[1739723576442,5.2307,191.16,191.14,28.86584266]
[1739723578850,5.2307,191.16,191.13,0.0384996]
[1739723580153,0.03513153,191.17,191.13,0.0384996]
[1739723581041,5.26533153,191.17,191.13,0.0384996]
[1739723581246,0.03513153,191.17,191.13,0.0384996]
[1739723581647,0.03513153,191.17,191.14,5.2307]
[1739723581848,0.03513153,191.17,191.13,0.0384996]
[1739723582246,0.03513153,191.17,191.14,5.2309]
[1739723582651,0.03513153,191.17,191.13,0.0384996]
[1739723582853,0.03513153,191.17,191.14,5.2309]
[1739723583445,0.03513153,191.17,191.13,0.0384996]
[1739723583650,5.26533153,191.17,191.13,5.2696996]
[1739723584153,5.26533153,191.17,191.13,0.0384996]
[1739723584353,0.03513153,191.17,191.13,0.0384996]
[1739723585148,0.03513153,191.17,191.15,5.2307]
[1739723586055,0.03513153,191.17,191.14,5.2309]
[1739723588045,0.03513153,191.17,191.13,0.0384996]
[1739723588652,5.2307,191.15,191.13,0.0384996]
[1739723589456,5.2305,191.16,191.13,0.0384996]
[1739723589864,0.03513153,191.17,191.13,0.0384996]
[1739723590354,5.2305,191.16,191.13,0.0384996]
[1739723590555,0.03513153,191.17,191.13,0.0384996]
[1739723591858,0.03513153,191.17,191.13,5.2695996]
[1739723592161,0.03513153,191.17,191.13,0.0384996]
[1739723592760,5.26533153,191.17,191.13,0.0384996]
[1739723593362,5.2307,191.15,191.13,0.0384996]
[1739723593868,0.03513153,191.17,191.13,0.0384996]
[1739723594455,5.2309,191.15,191.13,0.0384996]
[1739723596957,5.231,191.14,191.13,0.0384996]
[1739723598368,5.2308,191.15,191.13,0.0384996]
[1739723600163,0.03513153,191.17,191.13,0.0384996]
[1739723600364,5.231,191.14,191.13,0.0384996]
[1739723601469,0.03513153,191.17,191.13,0.0384996]
[1739723601662,5.2308,191.15,191.13,0.0384996]
[1739723602061,0.03513153,191.17,191.13,0.0384996]
[1739723602269,5.231,191.14,191.13,0.0384996]
[1739723602471,0.03513153,191.17,191.13,0.0384996]
[1739723602674,5.2308,191.15,191.13,0.0384996]
[1739723605476,0.03513153,191.17,191.13,0.0384996]
[1739723605668,5.2305,191.16,191.13,0.0384996]
[1739723606873,0.03513153,191.17,191.13,0.0384996]
[1739723607077,5.2305,191.16,191.13,0.0384996]
[1739723611883,0.03513153,191.17,191.13,0.0384996]
[1739723612080,5.2307,191.15,191.13,0.0384996]
[1739723613580,0.03513153,191.17,191.13,0.0384996]
[1739723614080,5.2309,191.15,191.13,0.0384996]
[1739723614282,0.03513153,191.17,191.13,0.0384996]
[1739723615187,5.231,191.14,191.13,0.0384996]
[1739723616284,5.2308,191.15,191.13,0.0384996]
[1739723616984,5.2307,191.16,191.13,0.0384996]
[1739723619084,0.03513153,191.17,191.13,0.0384996]
[1739723619285,5.2308,191.15,191.13,0.0384996]
[1739723620488,5.2305,191.16,191.13,0.0384996]
[1739723620687,0.03513153,191.17,191.13,0.0384996]
[1739723621689,5.2308,191.15,191.13,0.0384996]
[1739723622285,0.03513153,191.17,191.13,0.0384996]
[1739723622488,5.2304,191.16,191.13,0.0384996]
[1739723623477,0.03513153,191.17,191.13,0.0384996]
[1739723624280,5.2306,191.16,191.13,0.0384996]
[1739723625879,0.03513153,191.17,191.13,0.0384996]
[1739723626385,5.231,191.14,191.13,0.0384996]
[1739723627184,5.2307,191.15,191.13,0.0384996]
[1739723627489,0.03513153,191.17,191.13,0.0384996]
[1739723627989,5.26533153,191.17,191.13,0.0384996]
[1739723628382,0.03513153,191.17,191.13,0.0384996]
[1739723628581,5.2306,191.16,191.13,0.0384996]
[1739723629090,0.03513153,191.17,191.13,0.0384996]
[1739723629588,0.03513153,191.17,191.13,5.2694996]
[1739723632591,0.03513153,191.17,191.13,0.0384996]
[1739723633185,0.03513153,191.17,191.14,5.2308]
[1739723634695,0.03513153,191.17,191.13,5.2696996]
[1739723634993,5.2307,191.16,191.13,0.0384996]
[1739723639296,5.2307,191.16,191.13,5.2696996]
[1739723639600,5.2307,191.16,191.13,0.0384996]
[1739723640604,0.03513153,191.17,191.13,0.0384996]
[1739723641304,5.231,191.14,191.13,0.0384996]
[1739723646705,0.03513153,191.17,191.13,0.0384996]
[1739723647004,5.2306,191.16,191.13,0.0384996]
[1739723648002,0.03513153,191.17,191.13,0.0384996]
[1739723648598,5.2306,191.16,191.13,0.0384996]
[1739723648804,0.03513153,191.17,191.13,0.0384996]
[1739723649307,5.231,191.14,191.13,0.0384996]
[1739723650207,5.2306,191.16,191.13,0.0384996]
[1739723650713,0.03513153,191.17,191.13,0.0384996]
[1739723651309,5.2308,191.15,191.13,0.0384996]
[1739723652505,5.231,191.14,191.13,0.0384996]
[1739723655510,0.03513153,191.17,191.08,7.27728555]
[1739723655511,5.2321,191.1,191.08,7.27728555]
[1739723656011,3.2195,191.19,191.08,7.27728555]
[1739723656713,3.2195,191.19,191.12,0.03317167]
[1739723656714,0.03537842,191.15,191.12,0.03317167]
[1739723656915,5.2314,191.13,191.12,0.03317167]
[1739723660422,0.03537842,191.15,191.04,7.27728555]
[1739723660721,18.9195,191.19,191.05,5.2333]
[1739723660921,3.2195,191.19,191.05,5.2333]
[1739723661621,0.03943669,191.14,191.1,0.03980351]
[1739723662625,5.2315,191.12,191.1,0.03980351]
[1739723662820,0.03943669,191.14,191.1,0.03980351]
[1739723664123,5.2318,191.11,191.1,0.03980351]
[1739723670225,5.2315,191.12,191.1,0.03980351]
[1739723670625,0.03943669,191.14,191.1,0.03980351]
[1739723670828,5.2318,191.11,191.1,0.03980351]
[1739723671130,0.03943669,191.14,191.1,0.03980351]
[1739723671332,5.2314,191.13,191.1,0.03980351]
[1739723671626,0.03943669,191.14,191.1,0.03980351]
[1739723672628,5.2314,191.13,191.1,0.03980351]
[1739723673133,5.27043669,191.14,191.1,0.03980351]
[1739723675035,0.03943669,191.14,191.1,0.03980351]
[1739723675337,0.03943669,191.14,191.1,5.27180351]
[1739723677538,0.03943669,191.14,191.11,5.2318]
[1739723678239,0.03943669,191.14,191.1,0.03980351]
[1739723678743,0.03943669,191.14,191.13,5.2312]
[1739723679138,4.94,191.25,191.1,0.03980351]
[1739723679342,5.2294,191.2,191.15,5.2305]
[1739723679844,40.79007194,191.21,191.15,5.2305]
[1739723680537,0.0354842,191.2,191.16,0.03778825]
[1739723681438,0.0354842,191.2,191.17,5.2301]
[1739723682145,0.0354842,191.2,191.16,5.26818825]
[1739723683344,0.0354842,191.2,191.17,5.2301]
[1739723683543,0.0354842,191.2,191.16,0.03778825]
[1739723684345,0.0354842,191.2,191.16,5.26818825]
[1739723684542,0.0354842,191.2,191.16,0.03778825]
[1739723685051,5.2648842,191.2,191.16,0.03778825]
[1739723686545,5.2648842,191.2,191.16,5.26808825]
[1739723686752,5.2648842,191.2,191.16,0.03778825]
[1739723687748,0.0354842,191.2,191.16,0.03778825]
[1739723688453,0.0354842,191.2,191.17,5.2301]
[1739723690451,0.0354842,191.2,191.16,0.03778825]
[1739723691548,5.2297,191.19,191.16,0.03778825]
[1739723692251,5.2299,191.18,191.16,0.03778825]
[1739723692743,0.0354842,191.2,191.16,0.03778825]
[1739723692744,5.2301,191.17,191.16,0.03778825]
[1739723695653,0.0354842,191.2,191.06,12.22348555]
[1739723695954,1.5981,191.19,191.06,12.22348555]
[1739723696754,1.5981,191.19,191.09,5.2322]
[1739723696954,5.26613762,191.14,191.11,0.03922371]
[1739723697355,0.03513762,191.14,191.11,0.03922371]
[1739723698356,5.2315,191.12,191.11,0.03922371]
[1739723700358,0.03513762,191.14,191.11,0.03922371]
[1739723700359,5.2313,191.13,191.11,0.03922371]
[1739723700550,0.03513762,191.14,191.11,0.03922371]
[1739723701754,5.2315,191.12,191.11,0.03922371]
[1739723706955,0.03513762,191.14,191.11,0.03922371]
[1739723707162,5.2313,191.13,191.11,0.03922371]
[1739723707855,5.2315,191.12,191.11,0.03922371]
[1739723708659,5.2315,191.12,191.11,2.371e-05]
[1739723722060,6.9094,191.12,191.11,2.371e-05]
[1739723722266,8.4953,191.12,191.11,2.371e-05]
[1739723729974,24.1953,191.12,191.11,2.371e-05]
[1739723730265,25.15722397,191.12,191.11,2.371e-05]
[1739723730470,24.1953,191.12,191.11,2.371e-05]
[1739723730673,25.15724101,191.12,191.11,2.371e-05]
[1739723732266,25.15729978,191.12,191.11,2.371e-05]
[1739723733874,24.1953,191.12,191.11,2.371e-05]
[1739723734178,25.15728873,191.12,191.11,2.371e-05]
[1739723735577,25.15728809,191.12,191.11,2.371e-05]
[1739723736079,24.1953,191.12,191.11,2.371e-05]
[1739723739980,25.157202,191.12,191.11,2.371e-05]
[1739723740569,25.15722584,191.12,191.11,2.371e-05]
[1739723742374,219.15736552,191.12,191.11,2.371e-05]
[1739723742575,220.11941651,191.12,191.11,2.371e-05]
[1739723748184,220.11942555,191.12,191.11,2.371e-05]
[1739723749581,235.81942555,191.12,191.11,2.371e-05]
[1739723749780,234.85736552,191.12,191.11,2.371e-05]
[1739723750083,235.81943696,191.12,191.11,2.371e-05]
[1739723753385,235.81941236,191.12,191.11,2.371e-05]
[1739723754084,220.11941236,191.12,191.11,2.371e-05]
[1739723757486,218.53351236,191.12,191.11,2.371e-05]
[1739723758089,218.53349096,191.12,191.11,2.371e-05]
[1739723762091,234.23349096,191.12,191.11,2.371e-05]
[1739723762391,242.68373396,191.12,191.11,2.371e-05]
[1739723762593,234.23349096,191.12,191.11,2.371e-05]
[1739723763193,218.53349096,191.12,191.11,2.371e-05]
[1739723764088,216.85559096,191.12,191.11,2.371e-05]
[1739723766503,6.19356552,191.12,191.11,2.371e-05]
[1739723767095,0.03513762,191.14,191.11,2.371e-05]
[1739723767998,15.7,191.18,191.11,2.371e-05]
[1739723768198,0.96169436,191.17,191.11,2.371e-05]
[1739723768395,15.7,191.18,191.11,2.371e-05]
[1739723768602,0.96169527,191.17,191.11,2.371e-05]
[1739723768796,5.2312,191.14,191.11,2.371e-05]
[1739723769099,0.03391086,191.14,191.11,2.371e-05]
[1739723770197,5.2315,191.13,191.11,2.371e-05]
[1739723771702,5.2315,191.12,191.11,2.371e-05]
[1739723777196,0.03391086,191.14,191.11,2.371e-05]
[1739723777899,5.26491086,191.14,191.11,2.371e-05]
[1739723779494,0.03391086,191.14,191.11,2.371e-05]
[1739723779700,5.2312,191.13,191.11,2.371e-05]
[1739723779900,0.03391086,191.14,191.11,2.371e-05]
[1739723781203,5.2315,191.12,191.11,2.371e-05]
[1739723788307,20.9315,191.12,191.11,2.371e-05]
[1739723794416,5.2315,191.12,191.11,2.371e-05]
[1739723803829,0.03391086,191.14,191.11,2.371e-05]
[1739723804129,5.2315,191.12,191.11,2.371e-05]
[1739723805227,0.03391086,191.14,191.11,2.371e-05]
[1739723805425,5.2313,191.13,191.11,2.371e-05]
[1739723805622,0.03391086,191.14,191.11,2.371e-05]
[1739723805921,5.2315,191.12,191.11,2.371e-05]
[1739723812433,0.03391086,191.14,191.11,2.371e-05]
[1739723815931,5.2315,191.12,191.11,2.371e-05]
[1739723822533,0.03391086,191.14,191.11,2.371e-05]
[1739723824044,5.2315,191.12,191.11,2.371e-05]
[1739723824239,0.03391086,191.14,191.11,2.371e-05]
[1739723824545,5.26491086,191.14,191.11,2.371e-05]
[1739723825043,0.03391086,191.14,191.11,2.371e-05]
[1739723826045,5.26511086,191.14,191.11,2.371e-05]
[1739723827145,0.03391086,191.14,191.11,2.371e-05]
[1739723827347,5.2313,191.13,191.11,2.371e-05]
[1739723827846,0.03391086,191.14,191.11,2.371e-05]
[1739723828036,5.2312,191.13,191.11,2.371e-05]
[1739723828747,0.03391086,191.14,191.11,2.371e-05]
[1739723829049,5.2315,191.12,191.11,2.371e-05]
[1739723831350,0.03391086,191.14,191.11,2.371e-05]
[1739723832147,5.2315,191.12,191.11,2.371e-05]
[1739723841756,12.80451755,191.12,191.11,2.371e-05]
[1739723848654,5.2315,191.12,191.11,2.371e-05]
[1739723855564,12.80451755,191.12,191.11,2.371e-05]
[1739723857664,5.2315,191.12,191.11,2.371e-05]
[1739723862164,12.80451755,191.12,191.11,2.371e-05]
[1739723868380,5.2315,191.12,191.11,2.371e-05]
[1739723878274,12.80451755,191.12,191.11,2.371e-05]
[1739723886582,5.2315,191.12,191.11,2.371e-05]
[1739723890602,0.03391086,191.14,191.11,2.371e-05]
[1739723890794,5.2313,191.13,191.11,2.371e-05]
[1739723891985,5.26491086,191.14,191.11,7.57304126]
[1739723892186,0.03391086,191.14,191.13,7.57301755]
[1739723892387,0.03391086,191.14,191.11,7.57304126]
[1739723893085,0.03391086,191.14,191.11,2.371e-05]
[1739723893292,7.57301755,191.12,191.11,2.371e-05]
[1739723894286,12.80451755,191.12,191.11,2.371e-05]
[1739723910900,5.2337,191.04,191.0,7.57301755]
[1739723911403,5.2342,191.03,190.99,1.6083]
[1739723911603,7.57301755,191.04,190.99,1.6083]
[1739723912004,5.2348,191.01,191.0,0.03806072]
[1739723914504,7.57301755,191.02,191.0,0.03806072]
[1739723915006,0.03509086,191.03,191.0,0.03806072]
[1739723915205,12.80751755,191.02,191.0,0.03806072]
[1739723916602,7.57301755,191.02,191.0,0.03806072]
[1739723916803,5.26909086,191.03,191.0,0.03806072]
[1739723916999,0.03509086,191.03,191.0,0.03806072]
[1739723917308,5.2345,191.02,191.0,0.03806072]
[1739723917502,0.03509086,191.03,191.0,0.03806072]
[1739723918301,5.26909086,191.03,191.0,0.03806072]
[1739723918804,0.03509086,191.03,191.0,0.03806072]
[1739723919006,5.26909086,191.03,191.0,0.03806072]
[1739723920407,0.03509086,191.03,191.0,0.03806072]
[1739723920709,7.57301755,191.02,191.0,0.03806072]
[1739723921505,5.2345,191.01,191.0,0.03806072]
[1739723928004,7.57301755,191.02,190.94,7.57301755]
[1739723928207,5.2354,190.98,190.94,7.57301755]
[1739723928704,7.57301755,191.0,190.94,7.57301755]
[1739723929111,7.57301755,190.98,190.95,0.0400615]
[1739723929304,5.2359,190.96,190.92,10.80941755]
[1739723929504,5.2359,190.96,190.95,0.03561779]
[1739723935907,12.80891755,190.96,190.95,0.03561779]
[1739723937702,5.2359,190.96,190.95,0.03561779]
[1739723941117,12.80891755,190.96,190.95,0.03561779]
[1739723942920,7.60759655,190.98,190.95,0.03561779]
[1739723943219,7.57301755,190.96,190.95,0.03561779]
[1739723944317,12.80891755,190.96,190.95,0.03561779]
[1739723953322,12.80891755,190.96,190.95,1.779e-05]
[1739723961029,7.57301755,190.96,190.84,10.67261755]
[1739723961229,5.2378,190.9,190.84,10.67261755]
[1739723961425,7.57301755,190.91,190.84,10.67261755]
[1739723961631,7.57301755,190.89,190.84,1.5739]
[1739723961924,5.2386,190.87,190.84,1.5739]
[1739723962332,5.27857984,190.87,190.84,1.61199209]
[1739723963229,7.61299739,190.87,190.84,0.03809209]
[1739723964028,12.85149739,190.87,190.84,0.03809209]
[1739723966024,7.57301755,190.85,190.84,0.03809209]
[1739723966225,7.61299739,190.87,190.84,0.03809209]
[1739723967430,5.2387,190.86,190.84,0.03809209]
[1739723967631,7.61299739,190.87,190.84,0.03809209]
[1739723968134,5.2387,190.86,190.84,0.03809209]
[1739723969033,12.81191755,190.85,190.84,0.03809209]
[1739723969628,7.57301755,190.85,190.84,0.03809209]
[1739723970231,12.81191755,190.85,190.84,0.03809209]
[1739723979039,5.2389,190.85,190.84,0.03809209]
[1739723987245,0.03997984,190.87,190.84,0.03809209]
[1739723987945,5.27837984,190.87,190.84,0.03809209]
[1739723988146,0.03997984,190.87,190.84,0.03809209]
[1739723988350,5.2388,190.86,190.84,0.03809209]
[1739723989250,0.03997984,190.87,190.84,0.03809209]
[1739723989451,5.2389,190.85,190.84,0.03809209]
[1739723994659,0.03997984,190.87,190.84,0.03809209]
[1739723998051,5.2387,190.86,190.84,0.03809209]
[1739723998247,0.03997984,190.87,190.84,0.03809209]
[1739723998449,5.2387,190.86,190.84,0.03809209]
[1739723999962,5.2389,190.85,190.84,0.03809209]
[1739724004765,5.2389,190.86,190.84,0.03809209]
[1739724005067,0.03997984,190.87,190.84,0.03809209]
[1739724005366,5.2388,190.86,190.84,0.03809209]
[1739724005770,0.03997984,190.87,190.84,0.03809209]
[1739724005959,5.27847984,190.87,190.84,0.03809209]
[1739724007571,5.2387,190.86,190.84,0.03809209]
[1739724008070,0.03997984,190.87,190.84,0.03809209]
[1739724008370,5.27837984,190.87,190.84,0.03809209]
[1739724011672,0.03997984,190.87,190.84,0.03809209]
[1739724013274,50.54259005,190.89,190.84,0.03809209]
[1739724014475,0.03723632,190.88,190.84,0.03809209]
[1739724016980,5.27533632,190.88,190.84,0.03809209]
[1739724018882,0.03723632,190.88,190.84,0.03809209]
[1739724020082,5.27533632,190.88,190.84,0.03809209]
[1739724022181,5.2386,190.87,190.84,0.03809209]
[1739724025184,0.03723632,190.88,190.84,0.03809209]
[1739724025873,5.27553632,190.88,190.84,0.03809209]
[1739724028487,5.2384,190.87,190.84,0.03809209]
[1739724030186,0.03723632,190.88,190.84,0.03809209]
[1739724030392,5.2387,190.86,190.84,0.03809209]
[1739724031688,5.2389,190.85,190.84,0.03809209]
[1739724044699,5.24,190.81,190.77,1.5257]
[1739724044896,5.24,190.81,190.75,7.27728555]
[1739724045305,5.2403,190.81,190.75,7.27728555]
[1739724045496,3.3311,190.87,190.75,7.27728555]
[1739724045798,5.2403,190.8,190.79,0.03851029]
[1739724052405,5.2414,190.76,190.69,221.52114266]
[1739724052706,5.2414,190.76,190.69,30.52114266]
[1739724053207,17.3229,190.86,190.69,30.52114266]
[1739724053400,0.96328909,190.85,190.69,30.52114266]
[1739724053603,0.03685631,190.79,190.76,0.03359953]
[1739724053802,0.03685631,190.79,190.69,30.52114266]
[1739724054002,5.2418,190.75,190.69,30.52114266]
[1739724054923,0.03476029,190.74,190.7,0.03488841]
[1739724055208,5.242,190.74,190.69,30.52114266]
[1739724055408,5.27684546,190.74,190.7,0.03820993]
[1739724056900,5.2422,190.73,190.7,0.03820993]
[1739724057713,0.03484546,190.74,190.7,0.03820993]
[1739724057714,5.2428,190.71,190.7,0.03820993]
[1739724060314,0.03484546,190.74,190.7,0.03820993]
[1739724060517,5.2425,190.73,190.7,0.03820993]
[1739724060913,0.03484546,190.74,190.7,0.03820993]
[1739724061511,5.2422,190.73,190.7,0.03820993]
[1739724064619,0.03484546,190.74,190.7,0.03820993]
[1739724066016,0.03484546,190.74,190.7,5.28100993]
[1739724066719,0.03484546,190.74,190.71,5.2427]
[1739724066922,0.03484546,190.74,190.7,0.03820993]
[1739724067314,0.03484546,190.74,190.7,5.28100993]
[1739724067515,0.03484546,190.74,190.7,0.03820993]
[1739724068010,0.03484546,190.74,190.7,5.28120993]
[1739724068217,0.03484546,190.74,190.7,0.03820993]
[1739724069110,5.2425,190.72,190.7,0.03820993]
[1739724077428,5.27704546,190.74,190.7,0.03820993]
[1739724078120,0.03484546,190.74,190.7,0.03820993]
[1739724078832,5.27694546,190.74,190.7,0.03820993]
[1739724080832,0.03484546,190.74,190.7,0.03820993]
[1739724081433,5.27684546,190.74,190.7,0.03820993]
[1739724081636,0.03484546,190.74,190.7,0.03820993]
[1739724082636,5.2422,190.73,190.7,0.03820993]
[1739724082841,0.03484546,190.74,190.7,0.03820993]
[1739724083235,5.27684546,190.74,190.7,0.03820993]
[1739724085338,0.03484546,190.74,190.7,0.03820993]
[1739724086134,0.03484546,190.74,190.71,5.2426]
[1739724087241,0.03484546,190.74,190.72,5.2425]
[1739724088643,0.03484546,190.74,190.7,0.03820993]
[1739724088840,0.03484546,190.74,190.7,5.28120993]
[1739724090143,0.03484546,190.74,190.7,0.03820993]
[1739724090839,0.03484546,190.74,190.7,5.28120993]
[1739724091035,0.03484546,190.74,190.7,0.03820993]
[1739724091441,0.03484546,190.74,190.71,5.2428]
[1739724099445,0.03484546,190.74,190.7,0.03820993]
[1739724099653,0.03484546,190.74,190.72,5.2424]
[1739724100554,0.03484546,190.74,190.7,0.03820993]
[1739724100752,0.03484546,190.74,190.71,5.2427]
[1739724101254,0.03484546,190.74,190.73,7.5977615]
[1739724103844,0.03484546,190.74,190.7,0.03820993]
[1739724106357,5.2426,190.72,190.7,0.03820993]
[1739724108354,0.03484546,190.74,190.7,0.03820993]
[1739724108355,5.2428,190.71,190.7,0.03820993]
[1739724109352,9.2880615,190.73,190.7,0.03820993]
[1739724109555,5.2426,190.72,190.7,0.03820993]